[Event "Titled Tuesday Blitz July 26 Early 2022"]
[White "Harshavardhan G B"]
[Black "Ozkan, Taha"]
[WhiteFideId "25059009"]
[BlackFideId "34577173"]
[WhiteElo "1831"]
[BlackElo "2024"]
[Result "1-0"]
[Round "10"]
[TimeControl "180+1"]
[Date "2022.07.26"]
[WhiteClock "0:01:29"]
[BlackClock "0:00:52"]

1. e4 {[%clk 0:03:00]}  c5 {[%clk 0:02:59]} 2. Nf3 {[%clk 0:03:00]}  e6 {[%clk 0:03:00]} 3. d4 {[%clk 0:03:00]}  cxd4 {[%clk 0:03:01]} 4. Nxd4 {[%clk 0:03:01]}  Qb6 {[%clk 0:03:01]} 5. Nb3 {[%clk 0:03:00]}  Qc7 {[%clk 0:03:01]} 6. Nc3 {[%clk 0:02:59]}  a6 {[%clk 0:03:02]} 7. Be3 {[%clk 0:02:55]}  b5 {[%clk 0:03:02]} 8. Bd3 {[%clk 0:02:54]}  Bb7 {[%clk 0:03:02]} 9. O-O {[%clk 0:02:54]}  Nf6 {[%clk 0:03:03]} 10. a3 {[%clk 0:02:53]}  d5 {[%clk 0:03:03]} 11. Qf3 {[%clk 0:02:44]}  dxe4 {[%clk 0:02:57]} 12. Nxe4 {[%clk 0:02:45]}  Nbd7 {[%clk 0:02:57]} 13. Rad1 {[%clk 0:02:34]}  Be7 {[%clk 0:02:53]} 14. Bf4 {[%clk 0:02:31]}  e5 {[%clk 0:02:37]} 15. Bg5 {[%clk 0:02:29]}  Nxe4 {[%clk 0:02:33]} 16. Bxe4 {[%clk 0:02:24]}  Bxg5 {[%clk 0:02:20]} 17. Bxb7 {[%clk 0:02:22]}  Rd8 {[%clk 0:02:20]} 18. Bxa6 {[%clk 0:02:17]}  O-O {[%clk 0:02:10]} 19. Bxb5 {[%clk 0:02:15]}  Nb6 {[%clk 0:02:01]} 20. Qc6 {[%clk 0:02:05]}  Qb8 {[%clk 0:02:00]} 21. c4 {[%clk 0:01:59]}  Rc8 {[%clk 0:01:55]} 22. Qe4 {[%clk 0:01:53]}  f5 {[%clk 0:01:48]} 23. Qe2 {[%clk 0:01:52]}  e4 {[%clk 0:01:48]} 24. c5 {[%clk 0:01:51]}  Na8 {[%clk 0:01:42]} 25. Rd7 {[%clk 0:01:48]}  Bf6 {[%clk 0:01:34]} 26. Ba6 {[%clk 0:01:37]}  Qxb3 {[%clk 0:01:27]} 27. Bc4+ {[%clk 0:01:36]}  Qxc4 {[%clk 0:01:24]} 28. Qxc4+ {[%clk 0:01:37]}  Kh8 {[%clk 0:01:25]} 29. b4 {[%clk 0:01:37]}  Nb6 {[%clk 0:01:25]} 30. Qe6 {[%clk 0:01:35]}  Nxd7 {[%clk 0:01:24]} 31. Qxd7 {[%clk 0:01:35]}  Ra8 {[%clk 0:01:23]} 32. b5 {[%clk 0:01:33]}  Rxa3 {[%clk 0:01:21]} 33. c6 {[%clk 0:01:32]}  Rb3 {[%clk 0:01:21]} 34. c7 {[%clk 0:01:32]}  Rc3 {[%clk 0:01:09]} 35. b6 {[%clk 0:01:30]}  Be5 {[%clk 0:00:52]} 36. Qe7 {[%clk 0:01:29]} 1-0


[Site "https://www.chess.com"]

[Event "Titled Tuesday Blitz July 26 Early 2022"]
[White "Ibarra Jerez, Jose Carlos"]
[Black "Csonka, Balazs"]
[WhiteFideId "2226332"]
[BlackFideId "742910"]
[WhiteElo "2628"]
[BlackElo "2404"]
[Result "1-0"]
[Round "10"]
[TimeControl "180+1"]
[Date "2022.07.26"]
[WhiteClock "0:01:17"]
[BlackClock "0:00:05"]

1. e4 {[%clk 0:03:00]}  c6 {[%clk 0:02:58]} 2. Nf3 {[%clk 0:03:00]}  d5 {[%clk 0:02:58]} 3. d3 {[%clk 0:03:01]}  dxe4 {[%clk 0:02:56]} 4. dxe4 {[%clk 0:03:01]}  Qxd1+ {[%clk 0:02:57]} 5. Kxd1 {[%clk 0:03:02]}  Bg4 {[%clk 0:02:57]} 6. Be2 {[%clk 0:03:02]}  Bxf3 {[%clk 0:02:57]} 7. Bxf3 {[%clk 0:03:02]}  Nd7 {[%clk 0:02:56]} 8. Be2 {[%clk 0:03:02]}  Ngf6 {[%clk 0:02:47]} 9. f3 {[%clk 0:03:01]}  h5 {[%clk 0:02:40]} 10. h4 {[%clk 0:02:42]}  g6 {[%clk 0:02:33]} 11. c3 {[%clk 0:02:41]}  Bh6 {[%clk 0:02:10]} 12. Bd2 {[%clk 0:02:41]}  e5 {[%clk 0:02:01]} 13. Kc2 {[%clk 0:02:40]}  Ke7 {[%clk 0:02:00]} 14. Be1 {[%clk 0:02:38]}  Rhd8 {[%clk 0:01:57]} 15. Nd2 {[%clk 0:02:38]}  Ne8 {[%clk 0:01:42]} 16. Nc4 {[%clk 0:02:36]}  Nd6 {[%clk 0:01:41]} 17. Nxd6 {[%clk 0:02:29]}  Kxd6 {[%clk 0:01:42]} 18. a4 {[%clk 0:02:29]}  a5 {[%clk 0:01:38]} 19. Bf2 {[%clk 0:02:29]}  Kc7 {[%clk 0:01:09]} 20. Bc4 {[%clk 0:02:29]}  Nb6 {[%clk 0:01:03]} 21. Bd3 {[%clk 0:01:56]}  Rd6 {[%clk 0:00:55]} 22. Bc5 {[%clk 0:01:53]}  Rd7 {[%clk 0:00:53]} 23. Rhd1 {[%clk 0:01:54]}  Rad8 {[%clk 0:00:50]} 24. b3 {[%clk 0:01:54]}  Nc8 {[%clk 0:00:46]} 25. Bf2 {[%clk 0:01:54]}  Ne7 {[%clk 0:00:40]} 26. Be1 {[%clk 0:01:52]}  Nc8 {[%clk 0:00:38]} 27. c4 {[%clk 0:01:44]}  b6 {[%clk 0:00:35]} 28. c5 {[%clk 0:01:44]}  Bf8 {[%clk 0:00:24]} 29. cxb6+ {[%clk 0:01:44]}  Kxb6 {[%clk 0:00:25]} 30. Bc3 {[%clk 0:01:43]}  f6 {[%clk 0:00:22]} 31. Bc4 {[%clk 0:01:42]}  Rxd1 {[%clk 0:00:20]} 32. Rxd1 {[%clk 0:01:42]}  Rxd1 {[%clk 0:00:20]} 33. Kxd1 {[%clk 0:01:42]}  Bb4 {[%clk 0:00:16]} 34. Bb2 {[%clk 0:01:37]}  Nd6 {[%clk 0:00:14]} 35. Bg8 {[%clk 0:01:35]}  Nc8 {[%clk 0:00:10]} 36. Bf7 {[%clk 0:01:32]}  Ne7 {[%clk 0:00:10]} 37. Ke2 {[%clk 0:01:33]}  Kc7 {[%clk 0:00:09]} 38. g4 {[%clk 0:01:32]}  Kd7 {[%clk 0:00:06]} 39. gxh5 {[%clk 0:01:31]}  gxh5 {[%clk 0:00:07]} 40. Bxh5 {[%clk 0:01:31]}  Ke6 {[%clk 0:00:08]} 41. Bg4+ {[%clk 0:01:28]}  Kf7 {[%clk 0:00:08]} 42. h5 {[%clk 0:01:27]}  Kg7 {[%clk 0:00:08]} 43. Bc1 {[%clk 0:01:27]}  Ng8 {[%clk 0:00:05]} 44. Be6 {[%clk 0:01:25]}  Nh6 {[%clk 0:00:04]} 45. Be3 {[%clk 0:01:25]}  Nf7 {[%clk 0:00:04]} 46. Bxf7 {[%clk 0:01:17]}  Kxf7 {[%clk 0:00:05]} 47. Kd3 {[%clk 0:01:17]} 1-0


[Site "https://www.chess.com"]

[Event "Titled Tuesday Blitz July 26 Early 2022"]
[White "Jeet, Jain"]
[Black "Avazkhonov, Alikhon"]
[WhiteFideId "5073022"]
[BlackFideId "14208504"]
[WhiteElo "2055"]
[BlackElo "1739"]
[Result "1-0"]
[Round "10"]
[TimeControl "180+1"]
[Date "2022.07.27"]
[WhiteClock "0:00:44"]
[BlackClock "0:00:03"]

1. Nf3 {[%clk 0:02:59]}  d5 {[%clk 0:02:59]} 2. b3 {[%clk 0:02:52]}  c6 {[%clk 0:02:55]} 3. Bb2 {[%clk 0:02:45]}  Nf6 {[%clk 0:02:56]} 4. g3 {[%clk 0:02:44]}  Bg4 {[%clk 0:02:55]} 5. Bg2 {[%clk 0:02:44]}  Nbd7 {[%clk 0:02:55]} 6. O-O {[%clk 0:02:43]}  Bxf3 {[%clk 0:02:55]} 7. Bxf3 {[%clk 0:02:43]}  e5 {[%clk 0:02:55]} 8. d3 {[%clk 0:02:42]}  Bd6 {[%clk 0:02:55]} 9. Nd2 {[%clk 0:02:42]}  O-O {[%clk 0:02:56]} 10. e3 {[%clk 0:02:43]}  Qe7 {[%clk 0:02:55]} 11. c4 {[%clk 0:02:43]}  e4 {[%clk 0:02:54]} 12. dxe4 {[%clk 0:02:36]}  dxe4 {[%clk 0:02:55]} 13. Bg2 {[%clk 0:02:37]}  Rad8 {[%clk 0:02:51]} 14. Qc2 {[%clk 0:02:37]}  Rfe8 {[%clk 0:02:48]} 15. a3 {[%clk 0:02:32]}  Be5 {[%clk 0:02:48]} 16. b4 {[%clk 0:02:20]}  Bxb2 {[%clk 0:02:30]} 17. Qxb2 {[%clk 0:02:21]}  Qe5 {[%clk 0:02:31]} 18. Qxe5 {[%clk 0:02:15]}  Nxe5 {[%clk 0:02:31]} 19. Nxe4 {[%clk 0:02:13]}  Nxe4 {[%clk 0:02:31]} 20. Bxe4 {[%clk 0:02:14]}  Nxc4 {[%clk 0:02:31]} 21. Bg2 {[%clk 0:02:10]}  Rd2 {[%clk 0:02:12]} 22. Rfc1 {[%clk 0:02:10]}  Ne5 {[%clk 0:02:04]} 23. h4 {[%clk 0:01:42]}  Red8 {[%clk 0:01:54]} 24. Bf1 {[%clk 0:01:26]}  Ng4 {[%clk 0:01:52]} 25. b5 {[%clk 0:01:19]}  cxb5 {[%clk 0:01:47]} 26. Rc7 {[%clk 0:01:18]}  Nxf2 {[%clk 0:01:43]} 27. Rxb7 {[%clk 0:01:13]}  Ng4 {[%clk 0:01:34]} 28. Bxb5 {[%clk 0:01:03]}  Nxe3 {[%clk 0:01:34]} 29. Bc6 {[%clk 0:01:03]}  h5 {[%clk 0:01:09]} 30. Rxa7 {[%clk 0:01:03]}  Rc2 {[%clk 0:01:06]} 31. Bf3 {[%clk 0:01:02]}  g6 {[%clk 0:00:58]} 32. a4 {[%clk 0:01:00]}  Rdd2 {[%clk 0:00:57]} 33. a5 {[%clk 0:01:00]}  Ra2 {[%clk 0:00:21]} 34. Rxa2 {[%clk 0:00:58]}  Rxa2 {[%clk 0:00:22]} 35. a6 {[%clk 0:00:58]}  Kf8 {[%clk 0:00:09]} 36. Ra8+ {[%clk 0:00:52]}  Kg7 {[%clk 0:00:08]} 37. Bb7 {[%clk 0:00:52]}  Nf5 {[%clk 0:00:04]} 38. Bd5 {[%clk 0:00:51]}  Ra3 {[%clk 0:00:02]} 39. Ra7 {[%clk 0:00:49]}  Rxg3+ {[%clk 0:00:02]} 40. Kf2 {[%clk 0:00:48]}  Ra3 {[%clk 0:00:03]} 41. Rxf7+ {[%clk 0:00:48]}  Kh6 {[%clk 0:00:02]} 42. a7 {[%clk 0:00:49]}  Ra5 {[%clk 0:00:01]} 43. a8=Q {[%clk 0:00:48]}  Rxa8 {[%clk 0:00:02]} 44. Bxa8 {[%clk 0:00:48]}  Nxh4 {[%clk 0:00:03]} 45. Be4 {[%clk 0:00:47]}  g5 {[%clk 0:00:03]} 46. Kg3 {[%clk 0:00:44]} 1-0


[Site "https://www.chess.com"]

[Event "Titled Tuesday Blitz July 26 Early 2022"]
[White "Karttunen, Mika"]
[Black "Ismayil, Malak"]
[WhiteFideId "502081"]
[BlackFideId "13412604"]
[WhiteElo "2343"]
[BlackElo "1879"]
[Result "1-0"]
[Round "10"]
[TimeControl "180+1"]
[Date "2022.07.27"]
[WhiteClock "0:00:11"]
[BlackClock "0:00:06"]

1. e4 {[%clk 0:03:00]}  e5 {[%clk 0:02:56]} 2. Nf3 {[%clk 0:03:00]}  Nc6 {[%clk 0:02:56]} 3. Bb5 {[%clk 0:02:59]}  a6 {[%clk 0:02:56]} 4. Ba4 {[%clk 0:02:58]}  Nf6 {[%clk 0:02:55]} 5. O-O {[%clk 0:02:56]}  Be7 {[%clk 0:02:56]} 6. Re1 {[%clk 0:02:55]}  b5 {[%clk 0:02:55]} 7. Bb3 {[%clk 0:02:54]}  O-O {[%clk 0:02:56]} 8. c3 {[%clk 0:02:48]}  d6 {[%clk 0:02:50]} 9. h3 {[%clk 0:02:45]}  h6 {[%clk 0:02:49]} 10. d4 {[%clk 0:02:44]}  Re8 {[%clk 0:02:47]} 11. a4 {[%clk 0:02:27]}  Bb7 {[%clk 0:02:45]} 12. Na3 {[%clk 0:01:52]}  b4 {[%clk 0:02:31]} 13. cxb4 {[%clk 0:01:45]}  Nxb4 {[%clk 0:02:25]} 14. Bxf7+ {[%clk 0:01:44]}  Kxf7 {[%clk 0:02:22]} 15. Qb3+ {[%clk 0:01:45]}  Kf8 {[%clk 0:02:08]} 16. Qxb4 {[%clk 0:01:22]}  Bxe4 {[%clk 0:02:02]} 17. Qc3 {[%clk 0:01:02]}  Bxf3 {[%clk 0:01:52]} 18. Qxf3 {[%clk 0:01:02]}  exd4 {[%clk 0:01:50]} 19. Nc4 {[%clk 0:00:52]}  c5 {[%clk 0:01:37]} 20. Bf4 {[%clk 0:00:50]}  Rb8 {[%clk 0:01:22]} 21. Re6 {[%clk 0:00:45]}  Qd7 {[%clk 0:00:55]} 22. Rae1 {[%clk 0:00:44]}  Rbd8 {[%clk 0:00:35]} 23. a5 {[%clk 0:00:35]}  Qb5 {[%clk 0:00:23]} 24. b3 {[%clk 0:00:33]}  Kf7 {[%clk 0:00:12]} 25. Bxd6 {[%clk 0:00:14]}  Rd7 {[%clk 0:00:02]} 26. Bxe7 {[%clk 0:00:12]}  Rexe7 {[%clk 0:00:03]} 27. Rxe7+ {[%clk 0:00:10]}  Rxe7 {[%clk 0:00:03]} 28. Nd6+ {[%clk 0:00:10]}  Kg8 {[%clk 0:00:03]} 29. Nxb5 {[%clk 0:00:08]}  Rxe1+ {[%clk 0:00:03]} 30. Kh2 {[%clk 0:00:09]}  axb5 {[%clk 0:00:04]} 31. a6 {[%clk 0:00:09]}  Ra1 {[%clk 0:00:03]} 32. Qb7 {[%clk 0:00:08]}  d3 {[%clk 0:00:03]} 33. a7 {[%clk 0:00:09]}  d2 {[%clk 0:00:03]} 34. a8=Q+ {[%clk 0:00:09]}  Rxa8 {[%clk 0:00:04]} 35. Qxa8+ {[%clk 0:00:10]}  Kh7 {[%clk 0:00:04]} 36. Qd8 {[%clk 0:00:10]}  Ne4 {[%clk 0:00:04]} 37. f3 {[%clk 0:00:10]}  c4 {[%clk 0:00:03]} 38. fxe4 {[%clk 0:00:10]}  c3 {[%clk 0:00:03]} 39. Qd3 {[%clk 0:00:09]}  b4 {[%clk 0:00:04]} 40. e5+ {[%clk 0:00:09]}  Kg8 {[%clk 0:00:04]} 41. Kg3 {[%clk 0:00:10]}  Kf7 {[%clk 0:00:04]} 42. Kf4 {[%clk 0:00:10]}  Ke6 {[%clk 0:00:05]} 43. Ke4 {[%clk 0:00:11]}  g5 {[%clk 0:00:05]} 44. g4 {[%clk 0:00:11]}  Ke7 {[%clk 0:00:05]} 45. Kd5 {[%clk 0:00:12]}  Kf7 {[%clk 0:00:06]} 46. e6+ {[%clk 0:00:12]}  Ke7 {[%clk 0:00:06]} 47. Ke5 {[%clk 0:00:13]}  Ke8 {[%clk 0:00:06]} 48. Kf6 {[%clk 0:00:13]}  h5 {[%clk 0:00:07]} 49. e7 {[%clk 0:00:11]}  hxg4 {[%clk 0:00:06]} 50. Qd8# {[%clk 0:00:11]} 1-0


[Site "https://www.chess.com"]

[Event "Titled Tuesday Blitz July 26 Early 2022"]
[White "Kozlov, Oleg"]
[Black "Todorovic, Bojan"]
[WhiteFideId "4104544"]
[BlackFideId "917087"]
[WhiteElo "2132"]
[BlackElo "2266"]
[Result "0-1"]
[Round "10"]
[TimeControl "180+1"]
[Date "2022.07.27"]
[WhiteClock "0:00:30"]
[BlackClock "0:00:19"]

1. f4 {[%clk 0:03:00]}  c5 {[%clk 0:02:56]} 2. Nf3 {[%clk 0:03:00]}  d6 {[%clk 0:02:53]} 3. g3 {[%clk 0:03:00]}  g6 {[%clk 0:02:53]} 4. Bg2 {[%clk 0:02:59]}  Bg7 {[%clk 0:02:53]} 5. O-O {[%clk 0:03:00]}  Nc6 {[%clk 0:02:52]} 6. d3 {[%clk 0:03:00]}  e5 {[%clk 0:02:46]} 7. e4 {[%clk 0:02:59]}  Nge7 {[%clk 0:02:45]} 8. Nc3 {[%clk 0:02:59]}  O-O {[%clk 0:02:44]} 9. fxe5 {[%clk 0:02:59]}  dxe5 {[%clk 0:02:38]} 10. Be3 {[%clk 0:02:59]}  Nd4 {[%clk 0:02:37]} 11. Qd2 {[%clk 0:02:56]}  f6 {[%clk 0:02:16]} 12. Rae1 {[%clk 0:02:55]}  Be6 {[%clk 0:02:14]} 13. Rf2 {[%clk 0:02:46]}  Rf7 {[%clk 0:02:07]} 14. Qc1 {[%clk 0:02:34]}  Qa5 {[%clk 0:02:02]} 15. Bh6 {[%clk 0:02:28]}  Rd8 {[%clk 0:01:56]} 16. Bxg7 {[%clk 0:02:26]}  Kxg7 {[%clk 0:01:56]} 17. Ref1 {[%clk 0:02:26]}  Rdf8 {[%clk 0:01:50]} 18. h3 {[%clk 0:02:05]}  b5 {[%clk 0:01:48]} 19. Nd2 {[%clk 0:01:58]}  b4 {[%clk 0:01:46]} 20. Nd5 {[%clk 0:01:54]}  Bxd5 {[%clk 0:01:45]} 21. exd5 {[%clk 0:01:55]}  Nef5 {[%clk 0:01:45]} 22. Ne4 {[%clk 0:01:47]}  Qb6 {[%clk 0:01:29]} 23. g4 {[%clk 0:01:40]}  Nd6 {[%clk 0:01:28]} 24. Nd2 {[%clk 0:01:16]}  c4 {[%clk 0:01:26]} 25. Kh2 {[%clk 0:01:07]}  c3 {[%clk 0:01:22]} 26. bxc3 {[%clk 0:01:05]}  bxc3 {[%clk 0:01:22]} 27. Ne4 {[%clk 0:01:04]}  Nxe4 {[%clk 0:01:19]} 28. dxe4 {[%clk 0:01:05]}  Qb2 {[%clk 0:01:19]} 29. Qxb2 {[%clk 0:01:03]}  cxb2 {[%clk 0:01:19]} 30. c3 {[%clk 0:01:03]}  Rb8 {[%clk 0:01:18]} 31. Rb1 {[%clk 0:01:04]}  Nb5 {[%clk 0:01:02]} 32. Rfxb2 {[%clk 0:01:03]}  Rfb7 {[%clk 0:00:54]} 33. c4 {[%clk 0:00:51]}  Nd6 {[%clk 0:00:51]} 34. Rxb7+ {[%clk 0:00:52]}  Rxb7 {[%clk 0:00:50]} 35. Rxb7+ {[%clk 0:00:47]}  Nxb7 {[%clk 0:00:50]} 36. Kg1 {[%clk 0:00:48]}  Kf7 {[%clk 0:00:47]} 37. Kf2 {[%clk 0:00:48]}  Ke7 {[%clk 0:00:47]} 38. Ke3 {[%clk 0:00:48]}  Kd6 {[%clk 0:00:48]} 39. Kd3 {[%clk 0:00:49]}  Kc5 {[%clk 0:00:48]} 40. Kc3 {[%clk 0:00:49]}  Nd6 {[%clk 0:00:48]} 41. Bf1 {[%clk 0:00:43]}  Nxe4+ {[%clk 0:00:48]} 42. Kc2 {[%clk 0:00:43]}  Nd6 {[%clk 0:00:43]} 43. Kc3 {[%clk 0:00:39]}  f5 {[%clk 0:00:43]} 44. gxf5 {[%clk 0:00:39]}  gxf5 {[%clk 0:00:43]} 45. Be2 {[%clk 0:00:39]}  f4 {[%clk 0:00:42]} 46. a3 {[%clk 0:00:35]}  e4 {[%clk 0:00:41]} 47. Bf1 {[%clk 0:00:35]}  f3 {[%clk 0:00:41]} 48. Kd2 {[%clk 0:00:34]}  Kd4 {[%clk 0:00:35]} 49. h4 {[%clk 0:00:21]}  e3+ {[%clk 0:00:33]} 50. Ke1 {[%clk 0:00:21]}  e2 {[%clk 0:00:26]} 51. Bxe2 {[%clk 0:00:21]}  fxe2 {[%clk 0:00:26]} 52. Kxe2 {[%clk 0:00:22]}  Nxc4 {[%clk 0:00:25]} 53. Kf3 {[%clk 0:00:23]}  Kxd5 {[%clk 0:00:25]} 54. Kg4 {[%clk 0:00:23]}  Nxa3 {[%clk 0:00:25]} 55. Kg5 {[%clk 0:00:24]}  Nc4 {[%clk 0:00:20]} 56. Kh6 {[%clk 0:00:25]}  Ne5 {[%clk 0:00:19]} 57. Kxh7 {[%clk 0:00:26]}  a5 {[%clk 0:00:19]} 58. h5 {[%clk 0:00:26]}  Ng4 {[%clk 0:00:19]} 59. Kg6 {[%clk 0:00:26]}  a4 {[%clk 0:00:19]} 60. Kg5 {[%clk 0:00:26]}  a3 {[%clk 0:00:20]} 61. Kxg4 {[%clk 0:00:26]}  a2 {[%clk 0:00:20]} 62. h6 {[%clk 0:00:27]}  a1=Q {[%clk 0:00:20]} 63. Kg5 {[%clk 0:00:28]}  Qh8 {[%clk 0:00:19]} 64. Kg6 {[%clk 0:00:29]}  Ke6 {[%clk 0:00:19]} 65. h7 {[%clk 0:00:30]}  Ke7 {[%clk 0:00:19]} 0-1


[Site "https://www.chess.com"]

[Event "Titled Tuesday Blitz July 26 Early 2022"]
[White "Kucuksari, Kaan"]
[Black "Amburgy, Ryan"]
[WhiteFideId "6380166"]
[BlackFideId "30924820"]
[WhiteElo "2305"]
[BlackElo "2066"]
[Result "0-1"]
[Round "10"]
[TimeControl "180+1"]
[Date "2022.07.26"]
[WhiteClock "0:00:08"]
[BlackClock "0:00:16"]

1. d4 {[%clk 0:03:00]}  Nf6 {[%clk 0:02:59]} 2. c4 {[%clk 0:03:01]}  e6 {[%clk 0:03:00]} 3. g3 {[%clk 0:03:01]}  d5 {[%clk 0:03:00]} 4. Nf3 {[%clk 0:03:01]}  Bb4+ {[%clk 0:03:00]} 5. Bd2 {[%clk 0:03:01]}  Bd6 {[%clk 0:03:00]} 6. Bg2 {[%clk 0:03:01]}  O-O {[%clk 0:03:01]} 7. O-O {[%clk 0:03:02]}  c6 {[%clk 0:03:01]} 8. Qb3 {[%clk 0:03:03]}  a6 {[%clk 0:03:00]} 9. c5 {[%clk 0:02:56]}  Bc7 {[%clk 0:02:58]} 10. Nc3 {[%clk 0:02:54]}  Nbd7 {[%clk 0:02:56]} 11. Qc2 {[%clk 0:02:53]}  e5 {[%clk 0:02:55]} 12. dxe5 {[%clk 0:02:52]}  Nxe5 {[%clk 0:02:56]} 13. Nxe5 {[%clk 0:02:52]}  Bxe5 {[%clk 0:02:57]} 14. Na4 {[%clk 0:02:50]}  Bg4 {[%clk 0:02:55]} 15. e3 {[%clk 0:02:50]}  Bh5 {[%clk 0:02:55]} 16. Bc3 {[%clk 0:02:51]}  Bg6 {[%clk 0:02:55]} 17. Qd2 {[%clk 0:02:48]}  Bc7 {[%clk 0:02:56]} 18. Bd4 {[%clk 0:02:45]}  Ne4 {[%clk 0:02:53]} 19. Qb4 {[%clk 0:02:44]}  Rb8 {[%clk 0:02:22]} 20. Nb6 {[%clk 0:02:40]}  Ng5 {[%clk 0:02:21]} 21. h4 {[%clk 0:02:37]}  Ne6 {[%clk 0:02:21]} 22. Qc3 {[%clk 0:02:37]}  Nxd4 {[%clk 0:02:17]} 23. Qxd4 {[%clk 0:02:38]}  Qe7 {[%clk 0:02:14]} 24. Rad1 {[%clk 0:02:34]}  Rfe8 {[%clk 0:02:10]} 25. a4 {[%clk 0:02:33]}  Bxb6 {[%clk 0:02:02]} 26. cxb6 {[%clk 0:02:32]}  a5 {[%clk 0:01:59]} 27. Rc1 {[%clk 0:02:25]}  Ra8 {[%clk 0:01:57]} 28. Rfe1 {[%clk 0:02:25]}  Ra6 {[%clk 0:01:51]} 29. Bf1 {[%clk 0:02:25]}  Raa8 {[%clk 0:01:50]} 30. Rc5 {[%clk 0:02:23]}  Qd8 {[%clk 0:01:48]} 31. Rc3 {[%clk 0:02:21]}  Re4 {[%clk 0:01:46]} 32. Qc5 {[%clk 0:02:20]}  Rxa4 {[%clk 0:01:45]} 33. Ra3 {[%clk 0:02:18]}  Rxa3 {[%clk 0:01:39]} 34. bxa3 {[%clk 0:02:19]}  h6 {[%clk 0:01:38]} 35. Rd1 {[%clk 0:01:58]}  Qf6 {[%clk 0:01:37]} 36. Rd4 {[%clk 0:01:58]}  Be4 {[%clk 0:01:35]} 37. Bg2 {[%clk 0:01:56]}  Bxg2 {[%clk 0:01:26]} 38. Kxg2 {[%clk 0:01:57]}  Ra6 {[%clk 0:01:21]} 39. e4 {[%clk 0:01:52]}  g6 {[%clk 0:01:12]} 40. exd5 {[%clk 0:01:51]}  cxd5 {[%clk 0:01:12]} 41. Qc8+ {[%clk 0:01:40]}  Kg7 {[%clk 0:01:12]} 42. Qxb7 {[%clk 0:01:41]}  Rxb6 {[%clk 0:01:12]} 43. Qxd5 {[%clk 0:01:41]}  g5 {[%clk 0:00:32]} 44. hxg5 {[%clk 0:01:39]}  hxg5 {[%clk 0:00:33]} 45. Rg4 {[%clk 0:01:39]}  Kh6 {[%clk 0:00:33]} 46. Qxa5 {[%clk 0:00:58]}  Rb3 {[%clk 0:00:33]} 47. Qa8 {[%clk 0:00:51]}  Qf5 {[%clk 0:00:21]} 48. Qh8+ {[%clk 0:00:48]}  Kg6 {[%clk 0:00:21]} 49. Rb4 {[%clk 0:00:18]}  Qf3+ {[%clk 0:00:17]} 50. Kg1 {[%clk 0:00:18]}  Qd1+ {[%clk 0:00:17]} 51. Kh2 {[%clk 0:00:18]}  Rxb4 {[%clk 0:00:18]} 52. axb4 {[%clk 0:00:18]}  Qd2 {[%clk 0:00:18]} 53. Qg8+ {[%clk 0:00:17]}  Kf6 {[%clk 0:00:18]} 54. Qh8+ {[%clk 0:00:16]}  Kg6 {[%clk 0:00:19]} 55. Qg8+ {[%clk 0:00:09]}  Kf6 {[%clk 0:00:18]} 56. Kg2 {[%clk 0:00:06]}  Qxb4 {[%clk 0:00:18]} 57. Qh8+ {[%clk 0:00:06]}  Ke6 {[%clk 0:00:17]} 58. Qe8+ {[%clk 0:00:06]}  Kf6 {[%clk 0:00:17]} 59. Qc6+ {[%clk 0:00:06]}  Kg7 {[%clk 0:00:17]} 60. Qd5 {[%clk 0:00:07]}  Kg6 {[%clk 0:00:15]} 61. Qc6+ {[%clk 0:00:07]}  f6 {[%clk 0:00:15]} 62. Qe8+ {[%clk 0:00:07]}  Kg7 {[%clk 0:00:16]} 63. Qe7+ {[%clk 0:00:08]}  Qxe7 {[%clk 0:00:16]} 0-1


[Site "https://www.chess.com"]

[Event "Titled Tuesday Blitz July 26 Early 2022"]
[White "Le, Tuan Minh"]
[Black "Mardov, Dimitar"]
[WhiteFideId "12401153"]
[BlackFideId "30919495"]
[WhiteElo "2530"]
[BlackElo "2185"]
[Result "0-1"]
[Round "10"]
[TimeControl "180+1"]
[Date "2022.07.26"]
[WhiteClock "0:00:03"]
[BlackClock "0:00:29"]

1. d4 {[%clk 0:03:00]}  Nf6 {[%clk 0:02:58]} 2. Nf3 {[%clk 0:03:00]}  e6 {[%clk 0:02:58]} 3. Bf4 {[%clk 0:03:01]}  d5 {[%clk 0:02:53]} 4. e3 {[%clk 0:03:00]}  Bd6 {[%clk 0:02:53]} 5. Bg3 {[%clk 0:02:59]}  O-O {[%clk 0:02:53]} 6. c4 {[%clk 0:03:00]}  c5 {[%clk 0:02:47]} 7. Nc3 {[%clk 0:02:59]}  Nc6 {[%clk 0:02:47]} 8. cxd5 {[%clk 0:02:57]}  Nxd5 {[%clk 0:02:36]} 9. Nxd5 {[%clk 0:02:56]}  exd5 {[%clk 0:02:36]} 10. Bxd6 {[%clk 0:02:56]}  Qxd6 {[%clk 0:02:37]} 11. dxc5 {[%clk 0:02:57]}  Qxc5 {[%clk 0:02:37]} 12. Rc1 {[%clk 0:02:58]}  Qa5+ {[%clk 0:02:25]} 13. Qd2 {[%clk 0:02:50]}  Qxa2 {[%clk 0:02:24]} 14. Bb5 {[%clk 0:02:48]}  Bg4 {[%clk 0:02:15]} 15. Bxc6 {[%clk 0:02:44]}  Bxf3 {[%clk 0:02:08]} 16. gxf3 {[%clk 0:00:39]}  bxc6 {[%clk 0:02:00]} 17. Rxc6 {[%clk 0:00:39]}  Rab8 {[%clk 0:01:33]} 18. Rc2 {[%clk 0:00:37]}  Qb1+ {[%clk 0:01:12]} 19. Qd1 {[%clk 0:00:18]}  Rxb2 {[%clk 0:01:10]} 20. Rxb2 {[%clk 0:00:18]}  Qxb2 {[%clk 0:01:10]} 21. O-O {[%clk 0:00:19]}  Rd8 {[%clk 0:01:05]} 22. Qa4 {[%clk 0:00:20]}  d4 {[%clk 0:00:59]} 23. Rd1 {[%clk 0:00:16]}  d3 {[%clk 0:00:55]} 24. Qa5 {[%clk 0:00:16]}  Qf6 {[%clk 0:00:48]} 25. f4 {[%clk 0:00:10]}  h6 {[%clk 0:00:45]} 26. Kf1 {[%clk 0:00:10]}  a6 {[%clk 0:00:39]} 27. Qc7 {[%clk 0:00:06]}  Qh4 {[%clk 0:00:35]} 28. Rd2 {[%clk 0:00:03]}  Qh3+ {[%clk 0:00:29]} 29. Kg1 {[%clk 0:00:03]}  Rc8 {[%clk 0:00:29]} 0-1


[Site "https://www.chess.com"]